Cogmind - Beta 9.5 @@@ ROGUE MODE // 2020.04.12 @ 16:34:11 Player: GMCrimson Result: Destroyed by G-34 Mercenary with Small Laser Performance ------------- Evolutions (0) 0 Regions Visited (2) 400 Robots Destroyed (17) 85 Value Destroyed (402) 402 Prototype IDs (1) 20 Alien Tech Used (0) 0 Bonus (21) 21 TOTAL SCORE: 928 Bonus ------- Follower Combat Kills 21 Cogmind --------- Core Integrity 0/250 Matter 300/300 Energy 160/160 System Corruption 0% Temperature Cool (6) Movement Walking (180) Ox2 Location -10/Mines Parts ------- > --- POWER (1) -------- Light Nuclear Core > --- PROPULSION (2) --- Aluminum Leg Aluminum Leg > --- UTILITY (2) ------ High-capacity Storage Unit Experimental Sensor Array > --- WEAPON (2) ------- Medium Laser Assault Rifle > --- INVENTORY (12) --- Aluminum Leg Flight Unit Flight Unit Flight Unit Flight Unit Improved Heat Sink Visual Processing Unit Terrain Scanner ECM Suite Hardened Light Armor Plating Assault Rifle Light Assault Rifle Peak State ------------ > --- POWER ------------ Light Nuclear Core > --- PROPULSION ------- Aluminum Leg Aluminum Leg > --- UTILITY ---------- High-capacity Storage Unit Experimental Sensor Array > --- WEAPON ----------- Medium Laser Assault Rifle > --- INVENTORY -------- Aluminum Leg Flight Unit Flight Unit Flight Unit Flight Unit Improved Heat Sink Visual Processing Unit Terrain Scanner ECM Suite Hardened Light Armor Plating Assault Rifle Light Assault Rifle [Rating: 15] Favorites ----------- Power Light Nuclear Core Engine Light Ion Engine Power Core Light Nuclear Core Propulsion Aluminum Leg Leg Aluminum Leg Wheel Wheel Utility Large Storage Unit Device Experimental Sensor Array Storage Large Storage Unit Weapon Assault Rifle Energy Gun Medium Laser Ballistic Gun Assault Rifle Build | -11 -10 -10 ------- Run | Scr Mat Min Slots Evolved . | . . . Power . | . . . Propulsion . | . . . Utility . | . . . Weapon . | . . . Parts Attached 20 | 6 2 12 Power 4 | 1 . 3 Engine 3 | 1 . 2 Core 1 | . . 1 Reactor . | . . . Propulsion 6 | 2 . 4 Treads . | . . . Leg 4 | . . 4 Wheel 2 | 2 . . Hover . | . . . Flight . | . . . Utility 5 | 1 2 2 Device 1 | . . 1 Storage 4 | 1 2 1 Processor . | . . . Hackware . | . . . Protection . | . . . Artifact . | . . . Weapon 5 | 2 . 3 Energy Gun 2 | . . 2 Energy Cannon . | . . . Ballistic Gun 3 | 2 . 1 Ballistic Cannon . | . . . Launcher . | . . . Special Weapon . | . . . Impact Weapon . | . . . Slashing Weapon . | . . . Piercing Weapon . | . . . Special Melee Weapon . | . . . Unidentified Prototypes 1 | . . 1 Parts Lost 5 | . . 5 Power 2 | . . 2 Propulsion 1 | . . 1 Utility . | . . . Weapon 2 | . . 2 Highest Loss Streak 3 | . . 3 Average Slot Usage (%) 98 | . 98 98 Engine 6 | . 14 5 Core 7 | . . 7 Leg 23 | . . 24 Wheel 3 | . 28 1 Device 7 | . . 7 Storage 20 | . 26 20 Energy Gun 12 | . . 13 Ballistic Gun 15 | . 28 14 Naked Turns . | . . . Heaviest Build 55 | 11 39 55 Greatest Support 26 | 26 26 26 Greatest Overweight (x) 5 | 1 1 5 Average Overweight (x) 1 | . . 1 Largest Inventory Capacity 18 | 6 16 18 Average Capacity 13 | 5 15 13 Most Carried 14 | 4 13 14 Average Carried 11 | 2 9 11 Final Capacity 16 | 6 16 12 Final Carried 13 | 4 13 12 Class Distribution -------------------- 100% | Mutant Dominant Class ---------------- Mutant | -10/Materials Mutant | -10/Mines Resources | -11 -10 -10 ----------- Run | Scr Mat Min Matter Collected 618 | 189 35 394 Remotely . | . . . Salvage Created 472 | . 35 437 Parts 33 | . 2 31 Haulers Intercepted . | . . . Recyclers Shooed . | . . . Parts Field Recycled . | . . . Retrieved Matter . | . . . Parts Self-Destructed . | . . . Prevented . | . . . Kills | -11 -10 -10 ------- Run | Scr Mat Min Combat Hostiles Destroyed 16 | . 1 15 Guns 16 | . 1 15 Classes Destroyed 3 | . 1 2 Worker 1 | . . 1 Swarmer 8 | . . 8 Grunt 8 | . 1 7 Best Kill Streak 3 | . 1 3 Combat Bots Only 3 | . 1 3 Max Kills in Single Turn 1 | . 1 1 Gunslinging . | . . . Exploded . | . . . Melee . | . . . Uniques/NPCs Destroyed . | . . . Combat | -11 -10 -10 -------- Run | Scr Mat Min Damage Taken 982 | . 98 884 Core 261 | . 10 251 Absorbed by Shields . | . . . Core Remaining (%) 100 | 100 . . Volleys Fired 57 | . 7 50 Largest 2 | . 2 2 Hottest 70 | . 40 70 Shots Fired 110 | . 14 96 Gun 110 | . 14 96 Cannon . | . . . Launcher . | . . . Special . | . . . Kinetic 81 | . 14 67 Thermal 29 | . . 29 Explosive . | . . . Electromagnetic . | . . . Robot Hit Streak 9 | . 4 9 Robot Miss Streak 5 | . 1 5 Penetration Max . | . . . Secondary Targets 2 | . . 2 Max Gunslinging Chain 1 | . . 1 Shots Hit Robots 65 | . 10 55 Core Hits 28 | . 2 26 Critical Hits . | . . . Critical Kills . | . . . Critical Parts Destroyed . | . . . Melee Attacks . | . . . Impact . | . . . Slashing . | . . . Piercing . | . . . Sneak Attacks . | . . . Combat Hostiles . | . . . Follow-up Attacks . | . . . Damage Inflicted 838 | . 107 731 Guns 838 | . 107 731 Cannons . | . . . Explosions . | . . . Melee . | . . . Ramming . | . . . Kinetic 599 | . 107 492 Thermal 239 | . . 239 Explosive . | . . . Electromagnetic . | . . . Impact . | . . . Slashing . | . . . Piercing . | . . . Highest Corruption . | . . . Average Corruption . | . . . Corruption Purged . | . . . Overload Shots . | . . . Overflow Damage . | . . . Projectiles . | . . . Explosions . | . . . Melee . | . . . Knockbacks . | . . . Impact . | . . . Kinetic . | . . . Secondary . | . . . Self-Inflicted Damage . | . . . Shots . | . . . Rammed . | . . . Targets Rammed . | . . . Kicked . | . . . Crushed . | . . . Highest Temperature 72 | . . 72 Average Temperature 20 | . . 20 Received Heat Transfer 333 | . 54 279 Siege Activations . | . . . Robots Corrupted . | . . . Combat Hostiles . | . . . Parts Fried . | . . . Impact Corruptions . | . . . Robots Melted . | . . . Combat Hostiles . | . . . Parts Melted . | . . . Heat Transferred 703 | . . 703 Parts Sabotaged . | . . . Parts Stolen . | . . . Parts Stripped . | . . . Power Chain Reactions . | . . . Missiles Intercepted . | . . . Alert | -11 -10 -10 ------- Run | Scr Mat Min Peak Influence 259 | . 40 259 Average Influence 31 | . 10 33 Maximum Alert Level 1 | . . 1 Low Security (%) 99 | 100 100 99 Level 1 . | . . . Level 2 . | . . . Level 3 . | . . . Level 4 . | . . . Level 5 . | . . . High Security . | . . . Max Security . | . . . Squads Dispatched 1 | . 1 . Investigation 1 | . 1 . Extermination . | . . . Reinforcement . | . . . Assault . | . . . Garrison . | . . . Intercept . | . . . Construction Impeded . | . . . Haulers Reinforced . | . . . Stealth | -11 -10 -10 --------- Run | Scr Mat Min Distress Signals . | . . . Communications Jammed . | . . . Distress Signals . | . . . Times Spotted 26 | . 4 22 Peak Tracking Total 5 | . 5 3 Tactical Retreats 1 | . . 1 Traps | -11 -10 -10 ------- Run | Scr Mat Min Traps Triggered . | . . . Indirectly . | . . . Trap Hack Attempts . | . . . Triggered . | . . . Disarmed . | . . . Reprogrammed . | . . . Reused . | . . . Traps Extracted . | . . . Installed . | . . . Triggered . | . . . Machines | -11 -10 -10 ---------- Run | Scr Mat Min Machines Disabled 1 | . . 1 Max in Single Turn . | . . . Machines Sabotaged . | . . . Garrisons Compromised . | . . . Overloaded Fab Kills . | . . . Fab Network Shutdowns . | . . . Hacking | -11 -10 -10 --------- Run | Scr Mat Min Machines Accessed 2 | . 2 . Terminals 2 | . 2 . Fabricators . | . . . Repair Stations . | . . . Recycling Units . | . . . Scanalyzers . | . . . Garrison Access . | . . . Total Hacks 5 | . 5 . Successful 2 | . 2 . Failed 3 | . 3 . Catastrophic 1 | . 1 . Database Lockouts . | . . . Manual 2 | . 2 . Terminals 5 | . 5 . Fabricators . | . . . Repair Stations . | . . . Recycling Units . | . . . Scanalyzers . | . . . Garrison Access . | . . . Terminal Hacks 2 | . 2 . Robot Analysis 1 | . 1 . Hauler Manifests 1 | . 1 . Fabricator Hacks . | . . . Repair Station Hacks . | . . . Recycling Unit Hacks . | . . . Scanalyzer . | . . . Garrison Access Hacks . | . . . Unauthorized Hacks . | . . . Terminals . | . . . Fabricators . | . . . Repair Stations . | . . . Recycling Units . | . . . Scanalyzers . | . . . Garrison Access . | . . . Data Cores Recovered . | . . . Used . | . . . Hacking Detections 2 | . 2 . Full Trace Events 1 | . 1 . Feedback Events . | . . . Feedback Blocked . | . . . Robot Schematics Acquired . | . . . Robots Built . | . . . Matter . | . . . Time . | . . . Total Robot Build Rating . | . . . Part Schematics Acquired . | . . . Parts Built . | . . . Matter . | . . . Time . | . . . Total Part Build Rating . | . . . Parts Repaired . | . . . Time . | . . . Parts Recycled . | . . . Recycled Matter . | . . . Retrieved Matter . | . . . Retrieved Components . | . . . Parts Scanalyzed . | . . . Part Schematics Acquired . | . . . Parts Damaged . | . . . Bothacking | -11 -10 -10 ------------ Run | Scr Mat Min Used RIF Installer . | . . . Robots Hacked . | . . . Non-combat . | . . . Combat . | . . . Robot Hacks Applied . | . . . Relay Couplers Released . | . . . Robots Rewired . | . . . Allies Hacked . | . . . Hacks Repelled . | . . . Allies | -11 -10 -10 -------- Run | Scr Mat Min Total Allies 4 | . . 4 Largest Group 3 | . . 3 Highest-Rated Group 40 | . . 40 Highest-Rated Ally 31 | . . 31 Total Orders . | . . . Ally Attacks 9 | . . 9 Total Damage 200 | . . 200 Kills 4 | . . 4 Allies Corrupted . | . . . Allies Melted . | . . . Intel | -11 -10 -10 ------- Run | Scr Mat Min Robot Analysis Total 1 | . 1 . Derelict Logs Recovered 2 | . . 2 Drone Launches . | . . . Drone Recoveries . | . . . Exploration | -11 -10 -10 ------------- Run | Scr Mat Min Turns Passed 3187 | 64 242 2881 Spaces Moved 1814 | 56 176 1582 Core 18 | 18 . . Treads . | . . . Legs 1454 | . . 1454 Wheels 342 | 38 176 128 Hover . | . . . Flight . | . . . Fastest Speed 50 | 50 90 100 Average Speed 159 | 86 98 168 Slowest Speed 270 | 100 100 270 Overloaded Moves . | . . . Propulsion Burnouts . | . . . Robots Hopped . | . . . Cave-ins Triggered . | . . . Exploration Rate (%) 43 | 4 26 99 Regions Visited 2 Branch Regions 1 Pre-discovered Areas 1 | . . 1 Known Exits Taken . | . . . Unknown Exits Taken 2 | 1 1 . Scrap Searched 3 | . . 3 Spaces Dug . | . . . Terrain Destroyed . | . . . Melee . | . . . Projectile . | . . . AOE . | . . . Actions | -11 -10 -10 --------- Run | Scr Mat Min Total 2005 | 71 230 1704 Wait 83 | . 35 48 Move 1812 | 55 175 1582 Hop . | . . . Pick Up 27 | 10 10 7 Fast Attach 3 | . 1 2 Attach 14 | 6 1 7 Detach . | . . . Swap 3 | . . 3 Drop 6 | . 1 5 Fire 57 | . 7 50 Melee . | . . . Ram . | . . . Kick . | . . . Crush . | . . . Escape Stasis . | . . . Rewire . | . . . Trap . | . . . Miscellaneous . | . . . Route ------- -11/Scrapyard -10/Materials -10/Mines (discovered 3 exits: [*Mat x2] / [*Exi]) History --------- Turn | Location | Event 4 | -11/Scrapyard | Discovered new exit (range 16) 65 | -11/Scrapyard | Entered Materials 291 | -10/Materials | Discovered new exit (range 15) 307 | -10/Materials | Entered Mines 312 | -10/Mines | Learned location of Zion (-6) 318 | -10/Mines | Build established: Mutant 489 | -10/Mines | Core integrity fell below 50% 545 | -10/Mines | Learned location of 1 exit from Materials 580 | -10/Mines | Assisted by bots powering up and referring to "LRC-V3" 773 | -10/Mines | Discovered new exit (range 10) 1230 | -10/Mines | Core integrity fell below 20% 1280 | -10/Mines | Lost 3 parts (1p1n1w) 1352 | -10/Mines | Discovered new exit (range 12) 1543 | -10/Mines | Discovered new exit (range 6) 1555 | -10/Mines | Found a damaged Exp. Sensor Array with a note attached 1559 | -10/Mines | Found Prototype Device 1559 | -10/Mines | Identified Exp. Sensor Array 1867 | -10/Mines | Escorted by a lone wolf Derelict 3188 | -10/Mines | Destroyed by G-34 Mercenary with Small Laser Last Messages --------------- because that's where patrols are more likely to show up, but that doesn't do us much good if we can't spot those areas until they're on top of us... With this we can! Deliver it to Megawrench for repairs then we'll never be afraid of an ambush while sneaking around Materials again, ha." Dropped Lrg. Storage Unit. Acquired Prototype Device. Identified Exp. Sensor Array. Acquired 31 matter. Dropped Lgt. Ion Engine. Acquired Lgt. Nuclear Core. A derelict emerges from the shadows: "Nice work disposing of those Unaware! I'm happy to return the favor and help see you out of these parts." K-01 Serf cleans the Plasma Injector. Searching scrap... Found 39 Matter. Found Lgt. Ion Engine. Found Lgt. Cannon. Acquired 10 matter. Map ----- +----------------------------------------------------+ | ???# ? ##??????????## ## #?? | | ???###### ####????????########?? | | ????????## ##????????????????? | | ?????????## #????????????????? | | ??????????## ##????????????????? | | ???????????### #?????????????????? | | ?????????????# #????????????????## | | ?????????????# #????????????##### | | ?????????????# #????????????# | | ?????????????# #????####????## " | | ?????????????# #???## ##????# " | | ?????????????# #??## ###### " | | ?????????????# #### ## | | ?????????????# ? # | | ?????????????# ## ### | | ?????????????####################?? | | ??????????????????????????????????? | | ?????????????####?????????????????# | | ????????????## ##???????????????## | | ???????????## #??????????????## | | ??????????## #??????????????# | | ??######### < ##??????????????# | | ??# #######??????????## | | ??# !! ### ##??????????## | | ??# #### ! ! ### ? ##?????????## | | ??# #??# @ ! ## ##???????## | | ??# #??# !!! ## #####???# | | ??#?#### ## [!#??##? | | ??# ### ### #### | | ??######### gg ##?#=!! = | | ??????????# ## ##??#% [= | | ??????????# ## ##???####### | | ??????????# ## ####??????????### | | ????#######! ##???????????????? | | ????# [## * #????????????????? | | ????# % [ #????????????????? | | ????# #### ##????????????????? | | ????# #??### #?????????????????? | | ????# #????# #?????????????????? | | ????# #????# #?????????????????? | | ????# #????# #?????????????????? | | ????## ######## #?????????????????? | | ?????# #### # ?????????????????? | | ?????# ###?????????????????? | | ?????##### ####?????????????????? | | ????????## ## ###????????######## | | ???????## # #????????# # | | ???????# # < #????????# # | | ???????# #????????# # | | ???????# #####????????# < | +----------------------------------------------------+ Best States ------------- Heat Dissipation 25 Energy Generation 14 Energy Capacity 160 Matter Stores 300 Matter Capacity 300 Sight Range 16 Robot Scan Range 30 Terrain Scan Density 10 Evasion (%) 42 Item Schematics ----------------- None Robot Schematics ------------------ None Fabricated ------------ Nothing Alien Tech Used ----------------- None Achievements -------------- None Challenges ------------ None Game ------ Seed HoverMassArray Manual? 0 Play Time 00:15:27 Cumulative 26.6 hours Start 2020.04.12 @ 16:19:20 End 2020.04.12 @ 16:34:11 Sessions 1 Manual Loads 0 Difficulty Rogue Special Mode None Game No. 23 Rogue 23 Adventurer 0 Explorer 0 Win Type - Total 1 Types 1/0/0/0/0/0/0 Lore% 33 Gallery% 38 Achievement% 36 Wizard Run 0 Options --------- ASCII 0 Keyboard 0 Movement Mouse Keybinds 0 Fullscreen 1 Font 18/SmallcapsGlow Map View 76x50 Tactical HUD 0 Map Filters NONE Filters NONE Steam 1 RUN: 8cd90804-1aff-43cd-bbc6-55a6c793a3a8